fUSD/lending_fUSD_20241021
["ID","MTS","AMOUNT","RATE_DAILY","PERIOD"]
[340606290,1729525842685,-3353.5501126,0.00033869,2]
[340606291,1729525842694,-10071.5418478,0.00033869,2]
[340606292,1729525842703,-2000.0,0.00033892,30]
[340606293,1729525842713,-2000.0,0.00033892,30]
[340606294,1729525842722,-2000.0,0.00033892,30]
[340606295,1729525842732,-2000.0,0.00033892,30]
[340606296,1729525842743,-2000.0,0.00033892,30]
[340606297,1729525842753,-2000.0,0.00033892,30]
[340606298,1729525842763,-2000.0,0.00033892,30]
[340606299,1729525842772,-1178.51457266,0.00033892,30]
[340606300,1729525842783,-150.0,0.00033892,7]
[340606301,1729525842792,-371.43204214,0.00033893,2]
[340606302,1729525842803,-150.0,0.00033893,2]
[340606303,1729525842813,-549.3586106,0.00033893,5]
[340606304,1729525842822,-686.07664352,0.00033893,10]
[340606305,1729525842832,-341.81740151,0.00033893,2]
[340606306,1729525842841,-603.30492391,0.00033893,6]
[340606307,1729525842851,-1010.38137823,0.00033893,2]
[340606308,1729525842861,-517.35201054,0.00033893,7]
[340606309,1729525842870,-954.73858411,0.00033893,5]
[340606310,1729525842880,-1048.96416484,0.00033893,2]
[340606311,1729525842889,-853.93654854,0.00033893,2]
[340606312,1729525842899,-578.69384945,0.00033893,5]
[340606313,1729525842908,-187.39234729,0.00033893,2]
[340606314,1729525842918,-841.73893085,0.00033893,10]
[340606315,1729525842927,-1000.0,0.00033893,10]
[340606316,1729525842937,-291.40537503,0.00033893,2]
[340606317,1729525842947,-180.70786742,0.00033893,2]
[340606318,1729525842957,-643.0,0.00033893,2]
[340606319,1729525842966,-952.80618701,0.00033893,2]
[340606320,1729525842976,-500.0,0.00033893,10]
[340606321,1729525842986,-562.77931645,0.00033893,2]
[340606322,1729525842996,-172.30530768,0.00033893,2]
[340606323,1729525843006,-374.58080051,0.00033893,2]
[340606324,1729525843016,-550.0,0.00033893,2]
[340606325,1729525843025,-990.185444,0.00033893,2]
[340606326,1729525843035,-937.63329954,0.00033893,2]
[340606327,1729525843045,-170.6582559,0.00033893,2]
[340606328,1729525843055,-957.1222896,0.00033893,4]
[340606329,1729525843064,-1015.04784791,0.00033893,2]
[340606330,1729525843074,-553.25837501,0.00033893,2]
[340606331,1729525843083,-150.0,0.00033893,2]
[340606332,1729525843093,-615.43649347,0.00033893,2]
[340606333,1729525843103,-213.69904584,0.00033893,5]
[340606334,1729525843115,-210.97593484,0.00033893,2]
[340606335,1729525843124,-441.68755569,0.00033893,2]
[340606336,1729525843134,-1048.53499694,0.00033893,2]
[340606337,1729525843144,-569.26442279,0.00033893,2]
[340606338,1729525843154,-529.57657294,0.00033893,2]
[340606339,1729525843164,-896.48078452,0.00033893,2]
[340606340,1729525843173,-473.25033889,0.00033893,2]
[340606341,1729525843184,-320.11951436,0.00033893,2]
[340606342,1729525843193,-538.09536709,0.00033893,2]
[340606343,1729525843203,-266.38556546,0.00033893,10]
[340606344,1729525843214,-358.28891642,0.00033893,2]
[340606345,1729525843224,-278.63158807,0.00033893,2]
[340606346,1729525843234,-572.20276209,0.00033893,2]
[340606347,1729525843243,-500.0,0.00033893,7]
[340606348,1729525843254,-207.58555739,0.00033893,5]
[340606349,1729525843264,-1016.96197748,0.00033893,2]
[340606350,1729525843274,-209.1980848,0.00033893,2]
[340606351,1729525843284,-216.4002858,0.00033893,2]
[340606352,1729525843294,-1039.0,0.00033893,2]
[340606353,1729525843304,-150.0,0.00033893,2]
[340606354,1729525843315,-150.0,0.00033893,3]
[340606355,1729525843325,-150.0,0.00033893,2]
[340606356,1729525843337,-150.0,0.00033893,3]
[340606357,1729525843347,-823.25672528,0.00033893,10]
[340606358,1729525843358,-1405.10901696,0.00033893,2]
[340606359,1729525843368,-1088.39559786,0.00033893,7]
[340606360,1729525843378,-211.67569577,0.00033893,7]
[340606361,1729525843388,-1000.0,0.00033893,2]
[340606362,1729525843398,-1000.0,0.00033893,2]
[340606363,1729525843408,-1000.0,0.00033893,2]
[340606364,1729525843417,-1000.0,0.00033893,2]
[340606365,1729525843427,-1000.0,0.00033893,2]
[340606366,1729525843437,-635.0,0.00033893,2]
[340606367,1729525843447,-853.16069723,0.00033893,5]
[340606368,1729525843458,-160498.81923343,0.00033893,7]
[340606369,1729525843468,-50000.0,0.00033893,8]
[340606370,1729525843478,-4921.31334201,0.00033893,2]
[340606371,1729525843489,-169977.61971984,0.00033893,2]
[340606372,1729525843499,-1210.0,0.00033893,2]
[340606373,1729525843509,-3662.8346213,0.00033893,2]
[340606374,1729525843520,-1940.96536775,0.00033893,5]
[340606375,1729525843529,-2949.90687241,0.00033893,2]
[340606376,1729525843540,-1492.23949381,0.00033893,2]
[340606377,1729525843550,-7241.00259186,0.00033893,2]
[340606378,1729525843559,-5087.71476977,0.00033893,2]
[340606379,1729525843575,-2681.88776796,0.00033893,2]
[340606380,1729525843584,-2408.95216901,0.00033893,2]
[340606381,1729525843593,-2628.18158945,0.00033893,2]
[340606382,1729525843603,-134880.05244797,0.00033893,2]
[340606383,1729525843614,-3186.80629375,0.00033893,2]
[340606384,1729525843623,-1455.7288283,0.00033893,2]
[340606385,1729525843633,-22388.93293723,0.00033893,2]
[340606386,1729525843645,-7576.9266903,0.00033893,2]
[340606387,1729525843654,-5860.54330734,0.00033893,2]
[340606388,1729525843664,-1287.21008421,0.00033893,2]
[340606389,1729525843674,-4851.3674517,0.00033893,2]
[340606390,1729525843684,-22347.47873235,0.00033893,2]
[340606391,1729525843695,-12600.92909983,0.00033893,2]
[340606392,1729525843704,-1886.1185277,0.00033893,2]
[340606393,1729525843714,-5482.52953862,0.00033893,2]
[340606394,1729525843724,-28835.32385897,0.00033893,2]
[340606395,1729525843734,-8129.73271073,0.00033893,2]
[340606396,1729525843744,-1804.1225283,0.00033893,2]
[340606397,1729525843754,-3186.11945614,0.00033893,2]
[340606398,1729525843763,-6961.69376925,0.00033893,2]
[340606399,1729525843773,-1440.54030658,0.00033893,2]
[340606400,1729525843783,-10517.45513391,0.00033893,2]
[340606401,1729525843793,-166663.4956614,0.00033893,2]
[340606402,1729525843803,-14684.94234807,0.00033893,2]
[340606403,1729525843814,-1253.73065038,0.00033893,4]
[340606404,1729525843824,-6000.0,0.00033893,2]
[340606405,1729525843834,-4738.80850942,0.00033893,2]
[340606406,1729525843843,-14369.36196793,0.00033893,2]
[340606407,1729525843853,-1501.11036788,0.00033893,2]
[340606408,1729525843863,-150897.38116112,0.00033893,2]
[340606409,1729525843873,-2500.0,0.00033893,2]
[340606410,1729525843883,-2337.01376311,0.00033893,2]
[340606411,1729525843892,-239053.88145355,0.00033893,2]
[340606412,1729525843908,-316.143673,0.00033893,2]
[340606413,1729525843925,-650.5516089,0.00033893,2]
[340606414,1729525843936,-277.37660011,0.00033893,2]
[340606415,1729525843949,-1359.150502,0.00033893,2]
[340606416,1729525843965,-527.97726,0.00033893,2]
[340606417,1729525843977,-603.36,0.00033893,2]
[340606418,1729525844007,-87262.15205245,0.00033893,2]
[340606419,1729525844020,-66857.09925026,0.00033893,2]
[340606420,1729525844033,-1317.925,0.00033893,2]
[340606421,1729525844046,-6707.35085122,0.00033893,2]
[340606422,1729525844060,-773.54443068,0.00033893,2]
[340606423,1729525844071,-1558.0162378,0.00033893,2]
[340606424,1729525844082,-2000.0,0.00033893,2]
[340606425,1729525844094,-10797.19905418,0.00033893,2]
[340606426,1729525844106,-4916.52687293,0.00033893,2]
[340606427,1729525844118,-22594.10364498,0.00033893,2]
[340606428,1729525844129,-2165.32897978,0.00033893,2]
[340606429,1729525844140,-1544.30386789,0.00033893,2]
[340606430,1729525844151,-14504.64618465,0.00033893,2]
[340606431,1729525844162,-1804.82791111,0.00033893,2]
[340606432,1729525844172,-3885.27437575,0.00033893,2]
[340606433,1729525844182,-11631.49733064,0.00033893,2]
[340606434,1729525844193,-1957.90885093,0.00033893,2]
[340606435,1729525844203,-13808.95857644,0.00033893,2]
[340606436,1729525844213,-5046.35085816,0.00033893,2]
[340606437,1729525844223,-3190.42897455,0.00033893,2]
[340606438,1729525844235,-1547.02747874,0.00033893,2]
[340606439,1729525844249,-5208.85058324,0.00033893,4]
[340606440,1729525844260,-4375.9657054,0.00033893,7]
[340606441,1729525844271,-5092.60443447,0.00033893,7]
[340606442,1729525844282,-5081.64874226,0.00033893,4]
[340606443,1729525844293,-351.97436482,0.00033893,10]
[340606444,1729525844303,-7000.0,0.00033893,2]
[340606445,1729525844313,-718.23971617,0.00033893,2]
[340606446,1729525844324,-10389.17400111,0.00033893,3]
[340606447,1729525844335,-7722.97247953,0.00033893,7]
[340606448,1729525844347,-300.0,0.00033893,15]
[340606449,1729525844356,-14559.83417739,0.00033893,3]
[340606450,1729525844367,-18473.46451691,0.00033893,5]
[340606451,1729525844376,-10038.02561685,0.00033893,7]
[340606452,1729525844386,-6620.50182735,0.00033893,4]
[340606453,1729525844395,-151.16177263,0.00033893,2]
[340606454,1729525844404,-522.99728868,0.00033893,14]
[340606455,1729525844413,-3803.17709066,0.00033893,15]
[340606456,1729525844422,-95830.57918732,0.00033893,10]
[340606457,1729525844432,-2180.89825482,0.00033893,10]
[340606458,1729525844441,-3964.94918883,0.00033893,15]
[340606459,1729525844451,-10102.64320173,0.00033893,10]
[340606460,1729525844460,-4726.25471854,0.00033893,10]
[340606461,1729525844470,-50000.0,0.00033893,9]
[340606462,1729525844480,-269.6,0.00033893,2]
[340606463,1729525844492,-22900.8846117,0.00033893,15]
[340606464,1729525844502,-1760.36170803,0.00033893,16]
[340606465,1729525844511,-1772.40077905,0.00033893,29]
[340606466,1729525844521,-1000.0,0.00033893,2]
[340606467,1729525844533,-25663.84485524,0.00033893,4]
[340606468,1729525844543,-200.45763662,0.00033893,7]
[340606469,1729525844553,-994.0,0.00033893,120]
[340606470,1729525844563,-517.7159559,0.00033893,30]
[340606471,1729525844579,-492.384,0.00033893,30]
[340606472,1729525844591,-1968.16157252,0.00033893,60]
[340606473,1729525844603,-1080.09463691,0.00033893,30]
[340606474,1729525844615,-1026.56697334,0.00033893,30]
[340606475,1729525844627,-150.0,0.00033893,30]
[340606476,1729525844641,-150.0,0.00033893,30]
[340606477,1729525844655,-3071.56194498,0.00033893,30]
[340606478,1729525844668,-175.84555248,0.00033893,30]
[340606479,1729525844682,-2180.38461042,0.00033893,120]
[340606480,1729525844696,-1061.0955474,0.00033893,30]
[340606481,1729525844708,-2294.29217921,0.00033893,30]
[340606482,1729525844719,-2678.26459202,0.00033893,30]
[340606483,1729525844731,-2722.79831709,0.00033893,120]
[340606484,1729525844744,-1362.34084755,0.00033893,120]
[340606485,1729525844755,-1941.09371915,0.00033893,30]
[340606486,1729525844767,-1982.74057118,0.00033893,30]
[340606487,1729525844781,-1079.76042515,0.00033893,30]
[340606488,1729525844793,-852.68110675,0.00033893,30]
[340606489,1729525844805,-1965.2309212,0.00033893,120]
[340606490,1729525844816,-1106.45380973,0.00033893,30]
[340606491,1729525844829,-180.33481038,0.00033893,120]
[340606492,1729525844841,-2500.0,0.00033893,30]
[340606493,1729525844855,-3113.78,0.00033893,120]
[340606494,1729525844868,-2324.21086877,0.00033893,30]
[340606495,1729525844880,-3050.19939518,0.00033893,120]
[340606496,1729525844891,-163.56649368,0.00033893,120]
[340606497,1729525844904,-1200.0,0.00033893,120]
[340606498,1729525844916,-3000.0,0.00033893,30]
[340606499,1729525844928,-2686.99135191,0.00033893,60]
[340606500,1729525844942,-177.55902026,0.00033893,30]
[340606501,1729525844955,-188.89091026,0.00033893,120]
[340606502,1729525844969,-1833.72451559,0.00033893,120]
[340606503,1729525844982,-1416.61146907,0.00033893,120]
[340606504,1729525844997,-157.76064409,0.00033893,30]
[340606505,1729525845012,-255.00894335,0.00033893,120]
[340606506,1729525845025,-1240.2271247,0.00033893,120]
[340606507,1729525845036,-1809.22218759,0.00033893,120]
[340606508,1729525845050,-1915.19798018,0.00033893,120]
[340606509,1729525845062,-553.35717167,0.00033893,120]
[340606510,1729525845073,-195.46217439,0.00033893,31]
[340606511,1729525845086,-3072.40310819,0.00033893,120]
[340606512,1729525845097,-804.7610101,0.00033893,120]
[340606513,1729525845111,-1626.80119351,0.00033893,60]
[340606514,1729525845124,-2481.25831748,0.00033893,120]
[340606515,1729525845136,-250.6467096,0.00033893,30]
[340606516,1729525845148,-2975.95897565,0.00033893,30]
[340606517,1729525845160,-1665.74838633,0.00033893,120]
[340606518,1729525845172,-245.63421929,0.00033893,30]
[340606519,1729525845185,-1002.28916103,0.00033893,120]
[340606520,1729525845197,-268.48137484,0.00033893,120]
[340606521,1729525845208,-164.58291167,0.00033893,120]
[340606522,1729525845220,-158.90185794,0.00033893,120]
[340606523,1729525845231,-1233.35401495,0.00033893,120]
[340606524,1729525845242,-1953.03338417,0.00033893,120]
[340606525,1729525845253,-153.71868751,0.00033893,30]
[340606526,1729525845264,-265.03681187,0.00033893,30]
[340606527,1729525845275,-1535.56955966,0.00033893,120]
[340606528,1729525845285,-164.15720509,0.00033893,30]
[340606530,1729525845296,-1439.23261862,0.00033893,120]
[340606531,1729525845307,-2603.4307825,0.00033893,30]
[340606532,1729525845318,-250.49214378,0.00033893,30]
[340606533,1729525845328,-287.08163991,0.00033893,30]
[340606534,1729525845341,-1934.36484189,0.00033893,120]
[340606535,1729525845353,-1710.42180254,0.00033893,30]
[340606536,1729525845365,-2249.81744588,0.00033893,30]
[340606537,1729525845376,-264.76124981,0.00033893,30]
[340606538,1729525845388,-171.49756888,0.00033893,120]
[340606539,1729525845400,-3392.09709458,0.00033893,120]
[340606540,1729525845412,-1416.13308225,0.00033893,30]
[340606541,1729525845424,-721.78802775,0.00033893,30]
[340606542,1729525845436,-1243.69708716,0.00033893,120]
[340606543,1729525845448,-2125.11527813,0.00033893,30]
[340606544,1729525845459,-2900.99644311,0.00033893,120]
[340606545,1729525845469,-1868.2107417,0.00033893,30]
[340606546,1729525845481,-3053.13151357,0.00033893,120]
[340606547,1729525845492,-688.70221985,0.00033893,30]
[340606548,1729525845504,-3000.0,0.00033893,120]
[340606549,1729525845515,-482.07677953,0.00033893,120]
[340606550,1729525845528,-246.0,0.00033893,120]
[340606551,1729525845539,-3320.0,0.00033893,120]
[340606552,1729525845552,-5463.83802277,0.00033893,60]
[340606553,1729525845566,-2383.89629214,0.00033893,120]
[340606554,1729525845578,-9054.0,0.00033893,60]
[340606555,1729525845590,-1214.94049741,0.00033893,120]
[340606556,1729525845601,-14990.993999,0.00033893,2]
[340606557,1729525845613,-274.25165078,0.00033893,120]
[340606558,1729525845623,-13633.6824294,0.00033893,120]
[340606559,1729525845634,-10000.0,0.00033893,30]
[340606560,1729525845647,-5000.0,0.00033893,10]
[340606561,1729525845657,-676.04669376,0.00033893,30]
[340606562,1729525845667,-1000.0,0.00033893,2]
[340606563,1729525845676,-1000.0,0.00033893,2]
[340606564,1729525845687,-1000.0,0.00033893,2]
[340606565,1729525845698,-1000.0,0.00033893,2]
[340606566,1729525845709,-1000.0,0.00033893,2]
[340606567,1729525845720,-996.48462138,0.00033893,2]
[340606568,1729525845732,-210.89494883,0.00033893,120]
[340606569,1729525845744,-1557.54,0.00033893,2]
[340606570,1729525845756,-1557.54,0.00033893,30]
[340606571,1729525845769,-1557.54,0.00033893,30]
[340606573,1729525845781,-1557.54,0.00033893,30]
[340606574,1729525845792,-1557.54,0.00033893,30]
[340606576,1729525845806,-1557.54,0.00033893,30]
[340606578,1729525845816,-1557.54,0.00033893,30]
[340606579,1729525845826,-1557.54,0.00033893,30]
[340606580,1729525845837,-1557.54,0.00033893,30]
[340606581,1729525845848,-1557.54,0.00033893,30]
[340606582,1729525845861,-1557.54,0.00033893,30]
[340606583,1729525845872,-1557.54,0.00033893,30]
[340606584,1729525845885,-1557.54,0.00033893,30]
[340606585,1729525845897,-1557.54,0.00033893,30]
[340606586,1729525845908,-1557.54,0.00033893,30]
[340606587,1729525845921,-1557.54,0.00033893,30]
[340606588,1729525845933,-1557.54,0.00033893,30]
[340606590,1729525845946,-1557.54,0.00033893,30]
[340606592,1729525845957,-1557.54,0.00033893,30]
[340606594,1729525845968,-1557.54,0.00033893,30]
[340606595,1729525845979,-1557.54,0.00033893,30]
[340606596,1729525845993,-1557.54,0.00033893,30]
[340606597,1729525846002,-1557.54,0.00033893,30]
[340606598,1729525846014,-1557.66133038,0.00033893,30]
[340606599,1729525846025,-156.948529,0.00033893,40]
[340606600,1729525846036,-3207.39,0.00033893,2]
[340606601,1729525846047,-3207.39,0.00033893,4]
[340606602,1729525846058,-3207.39,0.00033893,6]
[340606603,1729525846069,-3207.39,0.00033893,8]
[340606604,1729525846079,-3207.39,0.00033893,10]
[340606605,1729525846091,-3207.39,0.00033893,12]
[340606606,1729525846103,-3207.39,0.00033893,14]
[340606607,1729525846115,-3207.39,0.00033893,16]
[340606608,1729525846126,-3207.39,0.00033893,18]
[340606609,1729525846136,-3207.39,0.00033893,20]
[340606610,1729525846147,-3207.39,0.00033893,22]
[340606611,1729525846157,-3207.39,0.00033893,24]
[340606612,1729525846169,-3207.39,0.00033893,26]
[340606613,1729525846180,-3207.39,0.00033893,28]
[340606614,1729525846190,-3207.39,0.00033893,30]
[340606615,1729525846201,-3207.39,0.00033893,32]
[340606616,1729525846211,-3207.39,0.00033893,34]
[340606617,1729525846221,-3207.39,0.00033893,36]
[340606618,1729525846233,-3207.39,0.00033893,38]
[340606619,1729525846246,-3207.39,0.00033893,40]
[340606620,1729525846257,-3207.39,0.00033893,40]
[340606621,1729525846268,-3207.39,0.00033893,40]
[340606622,1729525846278,-3207.39,0.00033893,40]
[340606623,1729525846289,-3207.58775383,0.00033893,40]
[340606624,1729525846299,-1000.0,0.00033893,30]
[340606625,1729525846309,-1000.0,0.00033893,30]
[340606626,1729525846319,-1000.0,0.00033893,30]
[340606627,1729525846330,-1000.0,0.00033893,30]
[340606628,1729525846340,-1000.0,0.00033893,30]
[340606629,1729525846351,-1000.0,0.00033893,30]
[340606630,1729525846361,-1000.0,0.00033893,30]
[340606631,1729525846371,-1000.0,0.00033893,30]
[340606632,1729525846382,-1000.0,0.00033893,30]
[340606633,1729525846392,-1000.0,0.00033893,30]
[340606634,1729525846402,-1000.0,0.00033893,30]
[340606635,1729525846413,-1000.0,0.00033893,30]
[340606636,1729525846423,-1000.0,0.00033893,30]
[340606637,1729525846434,-1000.0,0.00033893,30]
[340606638,1729525846445,-1000.0,0.00033893,30]
[340606639,1729525846455,-1000.0,0.00033893,30]
[340606640,1729525846466,-1000.0,0.00033893,30]
[340606641,1729525846477,-1000.0,0.00033893,30]
[340606642,1729525846488,-1000.0,0.00033893,30]
[340606643,1729525846498,-1000.0,0.00033893,30]
[340606644,1729525846509,-1000.0,0.00033893,30]
[340606645,1729525846519,-1000.0,0.00033893,30]
[340606646,1729525846530,-1000.0,0.00033893,30]
[340606647,1729525846540,-1000.0,0.00033893,30]
[340606648,1729525846550,-1894.242023,0.00033893,30]
[340606649,1729525846561,-496.842982,0.00033893,5]
[340606650,1729525846575,-151.0,0.00033893,7]
[340606651,1729525846586,-190.658682,0.00033893,7]
[340606652,1729525846596,-190.658682,0.00033893,7]
[340606653,1729525846606,-1062.39,0.00033933,3]
[340606654,1729525846618,-1062.39,0.00033933,3]
[340606655,1729525846628,-1062.39,0.00033933,3]
[340606656,1729525846639,-1062.39,0.00033933,3]
[340606657,1729525846650,-1062.39,0.00033933,3]
[340606658,1729525846661,-1062.39,0.00033933,3]
[340606659,1729525846672,-1062.39,0.00033933,3]
[340606660,1729525846682,-1062.39,0.00033933,3]
[340606661,1729525846693,-1062.39,0.00033933,3]
[340606662,1729525846703,-1062.39,0.00033933,3]
[340606663,1729525846714,-1062.44545903,0.00033933,3]
[340606664,1729525846728,-152.0,0.00033954,6]
[340606665,1729525846744,-1000.0,0.00034,15]
[340606666,1729525846755,-10341.82718406,0.00034,7]
[340606667,1729525846765,-2630.58679891,0.00034,120]
[340606668,1729525846775,-500.0,0.00034,120]
[340606669,1729525846787,-175430.84318215,0.00034,120]
[340606670,1729525846798,-1397.79,0.00034,30]
[340606671,1729525846808,-2000.0,0.000342,30]
[340606672,1729525846819,-1000.0,0.000343,15]
[340606673,1729525846830,-950.0,0.00034356,5]
[340606674,1729525846841,-150.0,0.0003441,10]
[340606675,1729525846852,-150.0,0.00034463,120]
[340606676,1729525846862,-150.0,0.00034548,10]
[340606677,1729525846873,-462.86,0.00034549,2]
[340606678,1729525846883,-150.0,0.00034596,120]
[340606679,1729525846894,-1000.0,0.000346,15]
[340606680,1729525846904,-151.0,0.00034603,120]
[340606681,1729525846915,-995.76,0.0003462,2]
[340606682,1729525846925,-1000.0,0.00034777,2]
[340606683,1729525846935,-679.71107418,0.00034849,120]
[340606684,1729525846946,-1000.0,0.000349,15]
[340606685,1729525846956,-940.36204358,0.00034904,5]
[340606686,1729525846966,-150.0,0.00034938,120]
[340606687,1729525846976,-1315.707003,0.0003494,14]
[340606688,1729525846987,-1000.0,0.0003496,14]
[340606689,1729525846997,-1000.0,0.0003498,14]
[340606690,1729525847007,-150.0,0.00035,2]
[340606691,1729525847017,-1000.0,0.00035,2]
[340606692,1729525847028,-160.0,0.00035,25]
[340606693,1729525847038,-890.0,0.00035,15]
[340606694,1729525847049,-250.0,0.00035,10]
[340606695,1729525847060,-3900.0,0.00035,7]
[340606696,1729525847070,-2000.0,0.00035,10]
[340606697,1729525847080,-163.10288305,0.00035,30]
[340606698,1729525847091,-2300.7269082,0.00035,90]
[340606699,1729525847102,-1050.0,0.00035,120]
[340606700,1729525847112,-1000.0,0.00035,120]
[340606701,1729525847124,-3000.0,0.00035,60]
[340606702,1729525847134,-250.861436,0.00035,7]
[340606703,1729525847144,-1000.0,0.00035,14]
[340606704,1729525847156,-190.658682,0.00035,7]
[340606705,1729525847167,-190.658682,0.00035,7]
[340606706,1729525847178,-150.0,0.00035,7]
[340606707,1729525847188,-50000.0,0.00035,5]
[340606708,1729525847198,-150.0,0.00035138,120]
[340606709,1729525847210,-1000.0,0.000352,15]
[340606710,1729525847220,-716.5773866,0.00035213,120]
[340606711,1729525847338,-39.4226134,0.00035213,120]
[340606712,1729525847348,-168.04,0.00035435,120]
[340606713,1729525847358,-150.0,0.00035455,120]
[340606714,1729525847368,-1000.0,0.000355,15]
[340606715,1729525847378,-2250.0,0.00035616,2]
[340606716,1729525847387,-209.98768559,0.00035616,60]
[340606717,1729525847399,-500.0,0.00035616,13]
[340606718,1729525847410,-414.0,0.00035616,13]
[340606719,1729525847420,-1000.0,0.00035616,13]
[340606720,1729525847430,-1000.0,0.00035616,13]
[340606721,1729525847722,-1000.0,0.00035616,13]
[340606722,1729525847734,-1000.0,0.00035616,13]
[340606723,1729525847744,-1000.0,0.00035616,13]
[340606724,1729525847754,-1000.0,0.00035616,13]
[340606725,1729525847764,-1000.0,0.00035616,13]
[340606726,1729525847773,-1000.0,0.00035616,13]
[340606727,1729525847783,-1000.0,0.00035616,13]
[340606728,1729525847793,-1000.0,0.00035616,13]
[340606729,1729525847803,-1000.0,0.00035616,13]
[340606730,1729525847812,-1000.0,0.00035616,13]
[340606731,1729525847822,-1000.0,0.00035616,13]
[340606732,1729525847832,-1000.0,0.00035616,13]
[340606733,1729525847842,-1000.0,0.00035616,13]
[340606734,1729525847851,-1000.0,0.00035616,13]
[340606735,1729525847860,-1000.0,0.00035616,13]
[340606736,1729525847870,-1000.0,0.00035616,13]
[340606737,1729525847879,-1000.0,0.00035616,13]
[340606738,1729525847889,-1000.0,0.00035616,13]
[340606739,1729525847898,-1000.0,0.00035616,13]
[340606740,1729525847907,-1000.0,0.00035616,13]
[340606741,1729525847918,-1000.0,0.00035616,13]
[340606742,1729525847929,-1000.0,0.00035616,13]
[340606743,1729525847938,-1000.0,0.00035616,13]
[340606744,1729525847949,-1000.0,0.00035616,13]
[340606745,1729525847959,-1000.0,0.00035616,13]
[340606746,1729525847968,-1107.0,0.00035616,13]
[340606747,1729525847978,-500.0,0.00035616,13]
[340606748,1729525847988,-500.0,0.00035616,13]
[340606749,1729525847998,-500.0,0.00035616,13]
[340606750,1729525848007,-500.0,0.00035616,13]
[340606751,1729525848016,-500.0,0.00035616,13]
[340606752,1729525848026,-500.0,0.00035616,13]
[340606753,1729525848035,-500.0,0.00035616,13]
[340606754,1729525848045,-500.0,0.00035616,13]
[340606755,1729525848055,-500.0,0.00035616,13]
[340606756,1729525848066,-500.0,0.00035616,13]
[340606757,1729525848075,-500.0,0.00035616,13]
[340606758,1729525848085,-500.0,0.00035616,13]
[340606759,1729525848096,-500.0,0.00035616,13]
[340606760,1729525848106,-500.0,0.00035616,13]
[340606761,1729525848118,-1000.0,0.00035616,13]
[340606762,1729525848128,-789.0,0.00035616,13]
[340606763,1729525848137,-500.0,0.00035616,13]
[340606764,1729525848147,-500.0,0.00035616,13]
[340606765,1729525848157,-500.0,0.00035616,13]
[340606766,1729525848167,-500.0,0.00035616,13]
[340606767,1729525848177,-500.0,0.00035616,13]
[340606768,1729525848187,-500.0,0.00035616,13]
[340606769,1729525848196,-500.0,0.00035616,13]
[340606770,1729525848205,-500.0,0.00035616,13]
[340606771,1729525848215,-500.0,0.00035616,13]
[340606772,1729525848224,-500.0,0.00035616,13]
[340606773,1729525848233,-500.0,0.00035616,13]
[340606774,1729525848247,-500.0,0.00035616,13]
[340606775,1729525848256,-500.0,0.00035616,13]
[340606776,1729525848266,-500.0,0.00035616,13]
[340606777,1729525848275,-500.0,0.00035616,13]
[340606778,1729525848285,-500.0,0.00035616,13]
[340606779,1729525848294,-500.0,0.00035616,13]
[340606780,1729525848304,-500.0,0.00035616,13]
[340606781,1729525848313,-500.0,0.00035616,13]
[340606782,1729525848323,-500.0,0.00035616,13]
[340606783,1729525848333,-500.0,0.00035616,13]
[340606784,1729525848342,-500.0,0.00035616,13]
[340606785,1729525848352,-500.0,0.00035616,13]
[340606786,1729525848362,-500.0,0.00035616,13]
[340606787,1729525848371,-500.0,0.00035616,13]
[340606788,1729525848380,-500.0,0.00035616,13]
[340606789,1729525848390,-500.0,0.00035616,13]
[340606790,1729525848399,-500.0,0.00035616,13]
[340606791,1729525848409,-500.0,0.00035616,13]
[340606792,1729525848418,-500.0,0.00035616,13]
[340606793,1729525848427,-500.0,0.00035616,13]
[340606794,1729525848437,-500.0,0.00035616,13]
[340606795,1729525848446,-500.0,0.00035616,13]
[340606796,1729525848456,-500.0,0.00035616,13]